Cogmind - Beta 13 @@@ ROGUE MODE // 2024.04.17 @ 16:49:39 Player: Gold Spoon Result: Destroyed by P-60 Hacker with Shock Rifle Performance ------------- Evolutions (3) 1500 Regions Visited (6) 1200 Robots Destroyed (56) 280 Value Destroyed (1958) 1958 Prototype IDs (6) 120 Alien Tech Used (0) 0 Bonus (300) 300 TOTAL SCORE: 5358 Bonus ------- Aligned with FarCom 300 Cogmind --------- Core Integrity 0/700 Matter 300/300 Energy 100/100 System Corruption 8% Temperature Cool (0) Movement Core (700) Ox13 Location -7/Factory Parts ------- > --- POWER (1) -------- (None) > --- PROPULSION (2) --- (None) > --- UTILITY (6) ------ High-capacity Storage Unit 0b10 Alert Chip > --- WEAPON (4) ------- (None) > --- INVENTORY (20) --- High-capacity Matter Pod (200) Experimental Sensor Array Heavy Armor Plating EM Pulse Gun Assault Rifle Peak State ------------ > --- POWER ------------ Improved Deuterium Engine > --- PROPULSION ------- Advanced Treads Medium Treads > --- UTILITY ---------- High-capacity Storage Unit Compact Matter Pod Experimental Sensor Array 0b10 Alert Chip Cloak of Protection Hacking Suite > --- WEAPON ----------- XL Autogun Array > --- INVENTORY -------- Nuclear Core Light Treads High-capacity Matter Pod Heavy Armor Plating EM Pulse Gun Assault Rifle Minigun Minigun Minigun Minigun [Rating: 79] Favorites ----------- Power Ion Engine Engine Ion Engine Power Core Nuclear Core Propulsion Light Treads Treads Light Treads Utility Hacking Suite Device Cloak of Protection Storage Small Storage Unit Processor 0b10 Alert Chip Hackware Hacking Suite Weapon EM Pulse Gun Energy Gun EM Pulse Gun Ballistic Gun Assault Rifle Build | -11 -10 -10 -10 -9 -8 -7 ------- Run | Yrd Mat Min Exi Min Mat Fac Slots Evolved 6 | . . . . . 4 2 Power . | . . . . . . . Propulsion . | . . . . . . . Utility 4 | . . . . . 2 2 Weapon 2 | . . . . . 2 . Parts Attached 38 | 6 . . 3 1 14 14 Power 4 | 1 . . . . 1 2 Engine 3 | 1 . . . . . 2 Core 1 | . . . . . 1 . Reactor . | . . . . . . . Propulsion 7 | 2 . . . 1 1 3 Treads 7 | 2 . . . 1 1 3 Leg . | . . . . . . . Wheel . | . . . . . . . Hover . | . . . . . . . Flight . | . . . . . . . Utility 20 | 1 . . 3 . 11 5 Device 7 | . . . 1 . 2 4 Storage 10 | 1 . . 1 . 8 . Processor 1 | . . . 1 . . . Hackware 2 | . . . . . 1 1 Protection . | . . . . . . . Artifact . | . . . . . . . Weapon 7 | 2 . . . . 1 4 Energy Gun 1 | 1 . . . . . . Energy Cannon . | . . . . . . . Ballistic Gun 6 | 1 . . . . 1 4 Ballistic Cannon . | . . . . . . . Launcher . | . . . . . . . Special Weapon . | . . . . . . . Impact Weapon . | . . . . . . . Slashing Weapon . | . . . . . . . Piercing Weapon . | . . . . . . . Special Melee Weapon . | . . . . . . . Unidentified Prototypes 4 | . . . 2 . 2 . Parts Lost 15 | . . . . . . 15 Power 2 | . . . . . . 2 Propulsion 4 | . . . . . . 4 Utility 5 | . . . . . . 5 Weapon 4 | . . . . . . 4 Highest Loss Streak 15 | . . . . . . 15 To Critical Strikes . | . . . . . . . Average Slot Usage (%) 85 | . 85 85 95 100 72 80 Engine 8 | . 14 14 14 14 . 5 Core 1 | . . . . . 8 1 Treads 21 | . 28 28 28 28 18 14 Device 3 | . . . . . 2 7 Storage 16 | . 14 14 21 14 17 14 Processor 6 | . . . 2 14 9 7 Hackware 5 | . . . . . 6 13 Energy Gun 6 | . 14 14 14 14 . . Ballistic Gun 12 | . 14 14 14 14 9 12 Naked Turns . | . . . . . . . Heaviest Build 75 | 14 14 14 18 14 63 75 Greatest Support 50 | 40 40 40 40 48 50 50 Greatest Overweight (x) 20 | . . . . . 1 20 Average Overweight (x) . | . . . . . . 1 Largest Inventory Capacity 25 | 8 8 8 8 8 25 20 Average Capacity 12 | 6 8 8 8 8 11 20 Most Carried 14 | 4 . . 6 8 10 14 Average Carried 6 | . . . 1 6 7 10 Final Capacity 20 | 8 8 8 8 8 20 20 Final Carried 8 | . . . 6 8 8 6 Class Distribution -------------------- 47% | Mutant 27% | Hacker-Skirmisher 24% | Skirmisher Dominant Class ---------------- Mutant | -10/Materials Mutant | -10/Mines Mutant | -10/Exiles Mutant | -9/Mines Skirmisher | -8/Materials Hacker-Skirmisher | -7/Factory Resources | -11 -10 -10 -10 -9 -8 -7 ----------- Run | Yrd Mat Min Exi Min Mat Fac Matter Collected 1897 | 192 83 6 . 40 1033 543 Remotely . | . . . . . . . Salvage Created 2166 | . 36 54 . . 1203 873 Parts 157 | . 7 7 . . 80 63 Haulers Intercepted . | . . . . . . . Recyclers Shooed 1 | . . . . . 1 . Parts Field Recycled . | . . . . . . . Retrieved Matter . | . . . . . . . Parts Self-Destructed . | . . . . . . . Prevented . | . . . . . . . Kills | -11 -10 -10 -10 -9 -8 -7 ------- Run | Yrd Mat Min Exi Min Mat Fac Combat Hostiles Destroyed 35 | . . 3 . . 20 12 Guns 35 | . . 3 . . 20 12 Classes Destroyed 11 | . 1 1 . . 7 2 Worker 5 | . . . . . 3 2 Builder 3 | . . . . . . 3 Recycler 1 | . . . . . 1 . Operator 3 | . . . . . 2 1 Watcher 9 | . 2 . . . 3 4 Swarmer 6 | . . 3 . . 3 . Grunt 12 | . . . . . 9 3 Sentry 7 | . . . . . 5 2 Specialist 2 | . . . . . 2 . Hunter 3 | . . . . . 1 2 Programmer 5 | . . . . . . 5 Best Kill Streak 8 | . 1 3 . . 8 4 Combat Bots Only 4 | . . 3 . . 4 3 Max Kills in Single Turn 2 | . 1 2 . . 2 1 Gunslinging . | . . . . . . . Exploded . | . . . . . . . Melee . | . . . . . . . Uniques/NPCs Destroyed . | . . . . . . . Combat | -11 -10 -10 -10 -9 -8 -7 -------- Run | Yrd Mat Min Exi Min Mat Fac Hostile Shots Fired 299 | . . 2 . . 42 255 Missed 109 | . . . . . 15 94 Damage Taken 3202 | . . 30 . . 392 2780 Core 738 | . . . . . 28 710 Absorbed by Shields . | . . . . . . . Core Remaining (%) 98 | 100 . . . 100 94 . Volleys Fired 98 | . 5 2 . . 50 41 Largest 4 | . 2 2 . . 1 4 Hottest 100 | . 60 60 . . 60 100 Shots Fired 140 | . 10 4 . . 50 76 Gun 140 | . 10 4 . . 50 76 Cannon . | . . . . . . . Launcher . | . . . . . . . Special . | . . . . . . . Kinetic 133 | . 5 2 . . 50 76 Thermal . | . . . . . . . Explosive . | . . . . . . . Electromagnetic 7 | . 5 2 . . . . Robot Hit Streak 12 | . 2 3 . . 12 6 Robot Miss Streak 10 | . 2 1 . . 8 10 Penetration Max . | . . . . . . . Secondary Targets . | . . . . . . . Shots Hit Robots 105 | . 6 3 . . 46 50 Core Hits 93 | . 4 3 . . 43 43 Critical Kills . | . . . . . . . Critical Parts Destroyed . | . . . . . . . Critical Strikes . | . . . . . . . Melee Attacks . | . . . . . . . Impact . | . . . . . . . Slashing . | . . . . . . . Piercing . | . . . . . . . Sneak Attacks . | . . . . . . . Combat Hostiles . | . . . . . . . Follow-up Attacks . | . . . . . . . Damage Inflicted 4403 | . 119 43 . . 2379 1862 Guns 4184 | . 119 43 . . 2373 1649 Cannons . | . . . . . . . Explosions 187 | . . . . . . 187 Melee . | . . . . . . . Ramming 32 | . . . . . 6 26 Kinetic 4101 | . 57 22 . . 2373 1649 Thermal 113 | . . . . . . 113 Explosive 74 | . . . . . . 74 Electromagnetic 83 | . 62 21 . . . . Impact . | . . . . . . . Slashing . | . . . . . . . Piercing . | . . . . . . . Highest Corruption 8 | . . . . . . 8 Average Corruption 1 | . . . . . . 1 Corruption Purged 2 | . . . . . . 2 Corruption Blocked . | . . . . . . . Effects 13 | . . . . . . 13 Message Errors 6 | . . . . . . 6 Matter Fused 1 | . . . . . . 1 Energy Discharges 3 | . . . . . . 3 Data Loss (minor) 2 | . . . . . . 2 Data Loss (major) 1 | . . . . . . 1 Overload Shots . | . . . . . . . Overflow Damage 34 | . . . . . . 34 Projectiles . | . . . . . . . Explosions 34 | . . . . . . 34 Melee . | . . . . . . . Knockbacks . | . . . . . . . Impact . | . . . . . . . Kinetic . | . . . . . . . Secondary . | . . . . . . . Self-Inflicted Damage 334 | . . . . . . 334 Shots 4 | . . . . . . 4 Rammed 3 | . . . . . 2 1 Targets Rammed 4 | . . . . . 2 2 Kicked . | . . . . . . . Crushed 1 | . . . . . . 1 Highest Temperature 318 | . . . . . 267 318 Average Temperature 78 | . . . . . 80 75 Received Heat Transfer 348 | . . . . . 171 177 Siege Activations . | . . . . . . . Robots Corrupted . | . . . . . . . Combat Hostiles . | . . . . . . . Parts Fried . | . . . . . . . Impact Corruptions . | . . . . . . . Robots Melted . | . . . . . . . Combat Hostiles . | . . . . . . . Parts Melted 1 | . . . . . . 1 Heat Transferred 50 | . . . . . . 50 Parts Sabotaged . | . . . . . . . Parts Stolen . | . . . . . . . Parts Stripped . | . . . . . . . Power Chain Reactions . | . . . . . . . Alert | -11 -10 -10 -10 -9 -8 -7 ------- Run | Yrd Mat Min Exi Min Mat Fac Peak Influence 319 | . 67 95 . . 319 284 Initial 97 | . . 25 . . . 97 Average 94 | . 53 94 . . 138 121 Maximum Alert Level 1 | . . . . . 1 1 Low Security (%) 90 | 100 100 100 . 100 67 95 Level 1 9 | . . . . . 32 4 Level 2 . | . . . . . . . Level 3 . | . . . . . . . Level 4 . | . . . . . . . Level 5 . | . . . . . . . High Security . | . . . . . . . Max Security . | . . . . . . . Squads Dispatched 13 | . 2 . . 1 4 6 Investigation 6 | . . . . 1 1 4 Extermination 2 | . . . . . . 2 Reinforcement 5 | . 2 . . . 3 . Assault . | . . . . . . . Garrison . | . . . . . . . Intercept . | . . . . . . . Searches Triggered . | . . . . . . . Construction Impeded 1 | . . . . . 1 . Haulers Reinforced . | . . . . . . . Active Scanning Responses . | . . . . . . . Cargo Convoy Interrupts 1 | . . . . . . 1 Stealth | -11 -10 -10 -10 -9 -8 -7 --------- Run | Yrd Mat Min Exi Min Mat Fac Distress Signals 4 | . 1 . . . 3 . Communications Jammed . | . . . . . . . Distress Signals . | . . . . . . . Times Spotted 63 | . 5 1 . . 27 30 Peak Tracking Total 11 | . 3 1 . . 5 11 Tactical Retreats . | . . . . . . . Traps | -11 -10 -10 -10 -9 -8 -7 ------- Run | Yrd Mat Min Exi Min Mat Fac Traps Triggered 1 | . . . . . . 1 Indirectly . | . . . . . . . Trap Hack Attempts . | . . . . . . . Triggered . | . . . . . . . Disarmed 4 | . . . . . . 4 Reprogrammed 6 | . . . . . 6 . Reused 1 | . . . . . 1 . Traps Extracted . | . . . . . . . Installed . | . . . . . . . Triggered 1 | . . . . . 1 . Machines | -11 -10 -10 -10 -9 -8 -7 ---------- Run | Yrd Mat Min Exi Min Mat Fac Machines Disabled 12 | . . . . . 3 9 Max in Single Turn 3 | . . . . . 1 3 Garrison Access 2 | . . . . . 1 1 Machines Repaired . | . . . . . . . Machines Dismantled . | . . . . . . . Machines Sabotaged . | . . . . . . . Overloaded Fab Kills . | . . . . . . . Hacking | -11 -10 -10 -10 -9 -8 -7 --------- Run | Yrd Mat Min Exi Min Mat Fac Machines Accessed 24 | . 1 . 4 1 10 8 Terminals 16 | . 1 . . . 9 6 Fabricators . | . . . . . . . Repair Stations 1 | . . . . . . 1 Recycling Units . | . . . . . . . Scanalyzers . | . . . . . . . Garrison Access 2 | . . . . . 1 1 Total Hacks 101 | . 2 . 49 1 24 25 Successful 81 | . 1 . 49 1 16 14 Failed 20 | . 1 . . . 8 11 Catastrophic 2 | . 1 . . . 1 . Database Lockouts . | . . . . . . . Manual 2 | . . . 2 . . . Terminals 47 | . 2 . . . 23 22 Fabricators . | . . . . . . . Repair Stations 2 | . . . . . . 2 Recycling Units . | . . . . . . . Scanalyzers . | . . . . . . . Garrison Access 2 | . . . . . 1 1 Terminal Hacks 79 | . 1 . 49 1 15 13 Record 55 | . . . 49 . 2 4 Robot Analysis 3 | . . . . . 3 . Prototype ID Bank 1 | . . . . . 1 . Open Door 1 | . . . . 1 . . Open DSF 1 | . . . . . . 1 Level Access Points 1 | . 1 . . . . . Alert Level 7 | . . . . . 3 4 Unreport Threat 2 | . . . . . 1 1 Locate Traps 3 | . . . . . 2 1 Disarm Traps 1 | . . . . . . 1 Reprogram Traps 1 | . . . . . 1 . Investigation Status 1 | . . . . . . 1 Registered Components 1 | . . . . . 1 . Zone Layout 1 | . . . . . 1 . Fabricator Hacks . | . . . . . . . Repair Station Hacks . | . . . . . . . Recycling Unit Hacks . | . . . . . . . Scanalyzer . | . . . . . . . Garrison Access Hacks 2 | . . . . . 1 1 Seal Access 2 | . . . . . 1 1 Unauthorized Hacks . | . . . . . . . Terminals . | . . . . . . . Fabricators . | . . . . . . . Repair Stations . | . . . . . . . Recycling Units . | . . . . . . . Scanalyzers . | . . . . . . . Garrison Access . | . . . . . . . Data Cores Recovered 1 | . . . . . . 1 Used . | . . . . . . . Hacking Detections 16 | . 1 . . . 8 7 Full Trace Events 8 | . 1 . . . 3 4 Feedback Events . | . . . . . . . Feedback Blocked . | . . . . . . . Robot Schematics Acquired . | . . . . . . . Robots Built . | . . . . . . . Authchips . | . . . . . . . Time . | . . . . . . . Total Robot Build Rating . | . . . . . . . Part Schematics Acquired . | . . . . . . . Parts Built . | . . . . . . . Authchips . | . . . . . . . Time . | . . . . . . . Total Part Build Rating . | . . . . . . . Parts Repaired . | . . . . . . . Time . | . . . . . . . Parts Recycled . | . . . . . . . Recycled Matter . | . . . . . . . Retrieved Matter . | . . . . . . . Retrieved Components . | . . . . . . . Parts Scanalyzed . | . . . . . . . Part Schematics Acquired . | . . . . . . . Parts Damaged . | . . . . . . . Bothacking | -11 -10 -10 -10 -9 -8 -7 ------------ Run | Yrd Mat Min Exi Min Mat Fac Used RIF Installer . | . . . . . . . Robots Hacked . | . . . . . . . Non-combat . | . . . . . . . Combat . | . . . . . . . Robot Hacks Applied . | . . . . . . . Relay Couplers Released . | . . . . . . . Fabnet Peak Effective % . | . . . . . . . Robots Rewired . | . . . . . . . Allies Hacked . | . . . . . . . Hacks Repelled . | . . . . . . . Allies | -11 -10 -10 -10 -9 -8 -7 -------- Run | Yrd Mat Min Exi Min Mat Fac Total Allies 1 | . . 1 . . . . Largest Group 1 | . . 1 1 . . . Highest-Rated Group 31 | . . 31 31 . . . Highest-Rated Ally 31 | . . 31 31 . . . Total Orders . | . . . . . . . Ally Attacks . | . . . . . . . Total Damage . | . . . . . . . Kills . | . . . . . . . Allies Corrupted . | . . . . . . . Allies Melted . | . . . . . . . Intel | -11 -10 -10 -10 -9 -8 -7 ------- Run | Yrd Mat Min Exi Min Mat Fac Robot Analysis Total 3 | . . . . . 3 . Derelict Logs Recovered 2 | . . . . 2 . . Drone Launches . | . . . . . . . Drone Recoveries . | . . . . . . . Exploration | -11 -10 -10 -10 -9 -8 -7 ------------- Run | Yrd Mat Min Exi Min Mat Fac Turns Passed 4652 | 60 169 269 979 713 880 1582 Spaces Moved 2464 | 35 97 162 607 440 477 646 Core 8 | 6 . . . . . 2 Treads 2456 | 29 97 162 607 440 477 644 Legs . | . . . . . . . Wheels . | . . . . . . . Hover . | . . . . . . . Flight . | . . . . . . . Fastest Speed 50 | 50 160 160 160 160 152 160 Average Speed 179 | 141 160 160 160 160 165 230 Slowest Speed 1050 | 160 160 160 160 160 232 1050 Overloaded Moves . | . . . . . . . Propulsion Burnouts . | . . . . . . . Robots Hopped . | . . . . . . . Cave-ins Triggered . | . . . . . . . Exploration Rate (%) 39 | 3 35 33 74 56 61 16 Regions Visited 6 Branch Regions 3 Pre-discovered Areas 2 | . . . 1 1 . . Known Exits Taken . | . . . . . . . Unknown Exits Taken 6 | 1 1 1 1 1 1 . Scrap Searched 1 | . . . . 1 . . Spaces Dug . | . . . . . . . Terrain Destroyed 96 | . . . . . 41 55 Melee . | . . . . . . . Projectile 46 | . . . . . 41 5 AOE 50 | . . . . . . 50 Terrain Rammed . | . . . . . . . Walls Destroyed . | . . . . . . . Machines Disabled . | . . . . . . . Actions | -11 -10 -10 -10 -9 -8 -7 --------- Run | Yrd Mat Min Exi Min Mat Fac Total 2661 | 46 101 168 614 449 565 718 Wait 20 | . . 5 1 7 7 . Move 2458 | 34 96 161 606 439 476 646 Hop . | . . . . . . . Pick Up 30 | 6 . . 4 2 8 10 Fast Attach . | . . . . . . . Attach 22 | 6 . . 1 . 4 11 Detach 4 | . . . . . 3 1 Swap 16 | . . . 2 1 10 3 Drop 7 | . . . . . 5 2 Fire 98 | . 5 2 . . 50 41 Melee . | . . . . . . . Ram . | . . . . . . . Kick . | . . . . . . . Crush 4 | . . . . . 2 2 Escape Stasis 2 | . . . . . . 2 Rewire . | . . . . . . . Trap . | . . . . . . . Miscellaneous . | . . . . . . . Route ------- -11/Scrapyard -10/Materials (discovered 4 exits: *Mat x3 / [*Min]) -10/Mines -10/Exiles (discovered 2 exits: *Min x2) -9/Mines -8/Materials (discovered 2 exits: *Fac x2) -7/Factory (discovered 1 exit: [*Fac]) History --------- Turn | Location | Event 5 | -11/Scrapyard | Discovered new exit (range 13) 61 | -11/Scrapyard | Entered Materials 87 | -10/Materials | Identified exit to Materials 147 | -10/Materials | Met 8R-AWN 214 | -10/Materials | Discovered new exit (range 11) 230 | -10/Materials | Entered Mines 233 | -10/Mines | Followed 8R-AWN into the Mines 309 | -10/Mines | Build established: Mutant 401 | -10/Mines | Discovered new exit (range 5) 423 | -10/Mines | Received a Mining Laser from a helpful Derelict 499 | -10/Mines | Entered Exiles 499 | -10/Exiles | Accompanied by 1 ally 525 | -10/Exiles | Discovered new exit (range 15) 551 | -10/Exiles | Welcomed by 8R-AWN 578 | -10/Exiles | Met EX-HEX 658 | -10/Exiles | Met EX-DEC 818 | -10/Exiles | Discovered new exit (range 11) 928 | -10/Exiles | Met EX-BIN 952 | -10/Exiles | Aligned with FarCom system 954 | -10/Exiles | Given EX-Vault access code 1219 | -10/Exiles | Learned location of Zion (-6) 1296 | -10/Exiles | Opened EX-Vault 1304 | -10/Exiles | Found Prototype Ballistic Gun 1310 | -10/Exiles | Found Prototype Processor 1314 | -10/Exiles | Found Prototype Device 1315 | -10/Exiles | Identified Cloak of Protection 1317 | -10/Exiles | Identified 0b10 Alert Chip 1353 | -10/Exiles | Warned to stay clear of 0b10 Research branches 1425 | -10/Exiles | Learned about 8R-AWN's background 1478 | -10/Exiles | Stole three prototypes: Cloak of Protection, XL Autogun Array, 0b10 Alert Chip 1478 | -10/Exiles | Entered Mines 1484 | -9/Mines | Met a Derelict bent on vengeance 1665 | -9/Mines | Met a Derelict shopkeep closing up shop 1744 | -9/Mines | Learned 2 Materials zone layouts 2141 | -9/Mines | Found a damaged Exp. Sensor Array with a note attached 2158 | -9/Mines | Found Prototype Device 2182 | -9/Mines | Discovered new exit (range 7) 2191 | -9/Mines | Entered Materials 2191 | -8/Materials | Evolved 4 slots: Utility x2, Weapon x2 2205 | -8/Materials | Identified Exp. Sensor Array 2207 | -8/Materials | Identified XL Autogun Array 2500 | -8/Materials | Discovered new exit (range 16) 2505 | -8/Materials | Build established: Skirmisher 2993 | -8/Materials | Discovered new exit (range 15) 3071 | -8/Materials | Entered Factory 3071 | -7/Factory | Evolved 2 slots: Utility x2 3073 | -7/Factory | FarCom data flow suspended 3652 | -7/Factory | Build established: Hacker-Skirmisher 3686 | -7/Factory | Discovered new exit (range 15) 4608 | -7/Factory | Cargo convoy interrupted 4645 | -7/Factory | Core integrity fell below 50% 4651 | -7/Factory | Core integrity fell below 20% 4653 | -7/Factory | Destroyed by P-60 Hacker with Shock Rifle Last Messages --------------- System corrupted: Energy discharge (-26). Penetrated by Slug. P-60 Hacker resets H-55 Commando, system corruption cleaned. Penetrated by Slug. K-01 Serf collects debris. Penetrated by Slug. Imp. Deuterium Engine destroyed. Penetrated by Slug. K-01 Serf collects debris. Penetrated by Slug. K-01 Serf collects debris. Hacking Suite destroyed. H-55 Commando destroyed. Penetrated by Slug. Critical hit (Burn: +37). R-06 Scavenger collects Machine Analyzer. P-60 Hacker resets X-57 Shotgunner, system corruption cleaned. Penetrated by Slug. Map ----- +----------------------------------------------------+ | ?????????????????????????????????????????????????? | | ?????????????????????????????????????????????????? | | ?????????????????????????????????????????????????? | | ?????????????????????????????????????????????????? | | ?????????????????????????????????????????????????? | | ?????????????????????????????????????????????????? | | ?????????????????????????????????????????????????? | | ?????????????????????????????????????????????????? | | ?????????????????????????????????????????????????? | | ?????????????????????????????????????????????????? | | ??????????????????????? ??????????????????????? | | ????????????????????? ??????????????????????? | | ???????????????????i +?????????????????????? | | ???????????????????# #?????????????????????? | | ???????????????????# #?????????????????????? | | ???????????????????# #?????????????????????? | | ???????????????????# k #?????????????????????? | | ???????????????????# % #?????????????????????? | | ???????????????????# #?#???????????????????? | | ???????????????????# # ????????????????????? | | ???????????????????# # ????????????????????? | | ???????????????????# ;?????????????????????? | | ???????????????????# #?????????????????????? | | ???????????????????# k#?????????????????????? | | ???????????????????# #?????????????????????? | | ???????????????????# @ #?????????????????????? | | ???????????????????# #?????????????????????? | | ???????????????????# #?????????????????????? | | ?????????????????#?#! r #?????????????????????? | | ?????????????????# ; #?????????????????????? | | ??????????########;; !%= #?????????????????????? | | ??????????# hx[ #?????????????????????? | | ??????????# ; p #?????????????????????? | | ??????????#""" pxhi #?????????????????????? | | ??????????#""" #k[ #?????????????????????? | | ??????????#""" # #?????????????????????? | | ??????????# # #????????????########## | | ??????????#""" # #????????????# # | | ??????????#""" # a #????????????# # | | ??????????#""" + #????????????# # | | ??????????# # #????????????# # | | ??????????#""" # #????????????# # | | ??????????#""" # #????????????# [ # | | ??????????#""" # #????????????# # | | ??????????# #### ####????????????# ] # | | ??????????# """ #??#%#??####?######### # | | ??????????# G" #??# #??# ? #####+#### | | ??????????# """ #??# #??#! "?"" """" #### | | ??????????# = #??# #??# """" """" + | | ??????##############??# #??# """" """" #### ! | +----------------------------------------------------+ Best States ------------- Heat Dissipation 34 Energy Generation 16 Energy Capacity 290 Matter Stores 500 Matter Capacity 500 Sight Range 16 Robot Scan Range 20 Terrain Scan Density 10 Cloak Strength 5 Evasion (%) 40 Recoil Reduction 2 Offensive Hacking 20 Item Schematics ----------------- None Robot Schematics ------------------ None Fabricated ------------ Nothing Alien Tech Used ----------------- None Achievements -------------- Risk Taker Serviceable Loadout Challenges ------------ None Game ------ Seed PropulsionWeightPropulsion Manual? 0 Play Time 00:50:21 Cumulative 6.0 hours Start 2024.04.16 @ 21:28:05 End 2024.04.17 @ 16:49:39 Sessions 3 Manual Loads 0 Difficulty Rogue Special Mode None Game No. 6 Rogue 4 Adventurer 2 Explorer 0 Win Type - Total 0 Types 0/0/0/0/0/0/0/0/0 Lore% 15 Gallery% 10 Achievement% 13 Wizard Run 0 Options --------- Layout 1 ASCII 0 Keyboard 0 Movement Mouse Keybinds 0 Fullscreen 1 Font 24/Smallcaps Map View 50x40 Zoom Use 0% Tactical HUD 0 Map Filters NONE Filters NONE Steam 1 RUN: 7f0dd463-fd4f-4f9b-9043-c4392bdbe3d9